[Event "Live Chess"]
[Site "Chess.com"]
[Date "2023.05.21"]
[Round "-"]
[White "LiamBellwood"]
[Black "Conradical12"]
[Result "1-0"]
[WhiteElo "2061"]
[BlackElo "1607"]
[TimeControl "300"]
[EndTime "16:24:55 PDT"]
[Termination "LiamBellwood won by checkmate"]

1. d3 {[%clk 0:04:59.3]} 1... e5 {[%clk 0:04:58.7]} 2. c4 {[%clk 0:04:56.7]}
2... Nc6 {[%clk 0:04:57.6]} 3. Nc3 {[%clk 0:04:56.4]} 3... Bc5 {[%clk
0:04:56.6]} 4. g3 {[%clk 0:04:55.7]} 4... Nf6 {[%clk 0:04:54.5]} 5. Bg2 {[%clk
0:04:55.4]} 5... O-O {[%clk 0:04:51.6]} 6. e4 {[%clk 0:04:53.8]} 6... d6 {[%clk
0:04:49.9]} 7. Nge2 {[%clk 0:04:52.5]} 7... Be6 {[%clk 0:04:47.1]} 8. O-O {[%clk
0:04:51.1]} 8... Qd7 {[%clk 0:04:46]} 9. Be3 {[%clk 0:04:45.5]} 9... Bxe3 {[%clk
0:04:44]} 10. fxe3 {[%clk 0:04:45.4]} 10... Ng4 {[%clk 0:04:43.3]} 11. Qd2
{[%clk 0:04:43.8]} 11... f5 {[%clk 0:04:27.8]} 12. d4 {[%clk 0:04:25]} 12...
exd4 {[%clk 0:04:23.5]} 13. exd4 {[%clk 0:04:23.9]} 13... Bxc4 {[%clk
0:04:20.4]} 14. h3 {[%clk 0:04:00.7]} 14... Bxe2 {[%clk 0:04:17.9]} 15. Nxe2
{[%clk 0:03:59.7]} 15... Nf6 {[%clk 0:04:14.2]} 16. exf5 {[%clk 0:03:56.2]}
16... Rae8 {[%clk 0:04:13.8]} 17. Nf4 {[%clk 0:03:49.3]} 17... Ne4 {[%clk
0:04:11.3]} 18. Qd3 {[%clk 0:03:45.6]} 18... d5 {[%clk 0:04:07.9]} 19. Ne6
{[%clk 0:03:41.6]} 19... Rf6 {[%clk 0:03:54.5]} 20. Bxe4 {[%clk 0:03:28.9]}
20... dxe4 {[%clk 0:03:53.1]} 21. Qxe4 {[%clk 0:03:28.8]} 21... Qd6 {[%clk
0:03:44]} 22. Kg2 {[%clk 0:03:19.4]} 22... Nd8 {[%clk 0:03:37.6]} 23. d5 {[%clk
0:03:04.6]} 23... Nxe6 {[%clk 0:03:33.9]} 24. dxe6 {[%clk 0:02:51.5]} 24... g6
{[%clk 0:03:32.5]} 25. Rad1 {[%clk 0:02:48.5]} 25... Qb6 {[%clk 0:03:26.8]} 26.
Qe5 {[%clk 0:02:40.8]} 26... Rxf5 {[%clk 0:03:21]} 27. Rxf5 {[%clk 0:02:39]}
27... gxf5 {[%clk 0:03:19.4]} 28. Rd7 {[%clk 0:02:32.6]} 28... Qc6+ {[%clk
0:03:07.3]} 29. Kf2 {[%clk 0:02:13.7]} 29... Qc2+ {[%clk 0:03:04.6]} 30. Kf3
{[%clk 0:01:56.7]} 30... Qe4+ {[%clk 0:03:00.1]} 31. Qxe4 {[%clk 0:01:56.1]}
31... fxe4+ {[%clk 0:02:59.1]} 32. Kxe4 {[%clk 0:01:43.7]} 32... Rxe6+ {[%clk
0:02:58.4]} 33. Kf5 {[%clk 0:01:39.2]} 33... Rc6 {[%clk 0:02:56.8]} 34. b4
{[%clk 0:01:22.8]} 34... b6 {[%clk 0:02:48.6]} 35. g4 {[%clk 0:01:18.3]} 35...
a5 {[%clk 0:02:46.5]} 36. bxa5 {[%clk 0:01:17.1]} 36... Rc5+ {[%clk 0:02:43.8]}
37. Kf6 {[%clk 0:01:16.6]} 37... bxa5 {[%clk 0:02:39.9]} 38. Rd8# {[%clk
0:01:16]} 1-0

[Event "Live Chess"]
[Site "Chess.com"]
[Date "2023.05.21"]
[Round "-"]
[White "toog"]
[Black "Brooms1989"]
[Result "1-0"]
[WhiteElo "2582"]
[BlackElo "1090"]
[TimeControl "300"]
[EndTime "16:25:33 PDT"]
[Termination "toog won by resignation"]

1. b4 {[%clk 0:04:57.1]} 1... e5 {[%clk 0:04:57.2]} 2. Bb2 {[%clk 0:04:57]} 2...
d6 {[%clk 0:04:53.5]} 3. g3 {[%clk 0:04:54.3]} 3... Nf6 {[%clk 0:04:51.7]} 4.
Bg2 {[%clk 0:04:53.8]} 4... c6 {[%clk 0:04:45.1]} 5. c4 {[%clk 0:04:52.7]} 5...
Bf5 {[%clk 0:04:42.2]} 6. Nf3 {[%clk 0:04:51.1]} 6... Be7 {[%clk 0:04:40.1]} 7.
O-O {[%clk 0:04:49.5]} 7... O-O {[%clk 0:04:38.5]} 8. Nc3 {[%clk 0:04:47.9]}
8... Nbd7 {[%clk 0:04:32.8]} 9. d4 {[%clk 0:04:41.6]} 9... e4 {[%clk 0:04:27.7]}
10. Nh4 {[%clk 0:04:39.9]} 10... Bg6 {[%clk 0:04:17.9]} 11. Nxg6 {[%clk
0:04:37.3]} 11... fxg6 {[%clk 0:04:17.8]} 12. Nxe4 {[%clk 0:04:36.2]} 12... Nxe4
{[%clk 0:04:16.8]} 13. Bxe4 {[%clk 0:04:36.1]} 13... Nf6 {[%clk 0:04:13]} 14.
Bg2 {[%clk 0:04:34.3]} 14... d5 {[%clk 0:04:02.4]} 15. cxd5 {[%clk 0:04:30.7]}
15... Nxd5 {[%clk 0:04:02.3]} 16. b5 {[%clk 0:04:28.5]} 16... Qb6 {[%clk
0:03:44.3]} 17. bxc6 {[%clk 0:04:23.8]} 17... Qxc6 {[%clk 0:03:36.8]} 18. Rc1
{[%clk 0:04:21.4]} 18... Qe6 {[%clk 0:03:29]} 19. Qb3 {[%clk 0:04:19.2]} 19...
Nb6 {[%clk 0:03:21.2]} 20. Qxe6+ {[%clk 0:04:16.7]} 20... Kh8 {[%clk 0:03:18.2]}
21. Bxb7 {[%clk 0:04:16.6]} 21... Rab8 {[%clk 0:03:16.9]} 22. Qxe7 {[%clk
0:04:14]} 22... Rfe8 {[%clk 0:03:10.1]} 23. Qc7 {[%clk 0:04:11.3]} 1-0

[Event "Live Chess"]
[Site "Chess.com"]
[Date "2023.05.21"]
[Round "-"]
[White "NAZRIZ1977"]
[Black "jk0110"]
[Result "1-0"]
[WhiteElo "2062"]
[BlackElo "1108"]
[TimeControl "300"]
[EndTime "16:25:38 PDT"]
[Termination "NAZRIZ1977 won on time"]

1. d4 {[%clk 0:04:50.5]} 1... Nf6 {[%clk 0:04:58.1]} 2. Nc3 {[%clk 0:04:49.5]}
2... e6 {[%clk 0:04:50.5]} 3. Bf4 {[%clk 0:04:47.5]} 3... c5 {[%clk 0:04:45.8]}
4. d5 {[%clk 0:04:40.1]} 4... Nxd5 {[%clk 0:04:36.3]} 5. Nxd5 {[%clk 0:04:38.3]}
5... exd5 {[%clk 0:04:35.5]} 6. Qxd5 {[%clk 0:04:37.9]} 6... Qf6 {[%clk
0:04:22.6]} 7. Qe5+ {[%clk 0:04:25.6]} 7... Qxe5 {[%clk 0:04:16.6]} 8. Bxe5
{[%clk 0:04:25.5]} 8... d6 {[%clk 0:04:12]} 9. Bc3 {[%clk 0:04:23]} 9... Nd7
{[%clk 0:04:00]} 10. O-O-O {[%clk 0:04:20.8]} 10... Nf6 {[%clk 0:03:56.4]} 11.
Bxf6 {[%clk 0:04:15.2]} 11... gxf6 {[%clk 0:03:54.6]} 12. e4 {[%clk 0:04:10.3]}
12... Be6 {[%clk 0:03:49.5]} 13. Bb5+ {[%clk 0:04:04.2]} 13... Kd8 {[%clk
0:03:45.5]} 14. Ne2 {[%clk 0:04:01.4]} 14... Bxa2 {[%clk 0:03:41.5]} 15. b3
{[%clk 0:03:58.8]} 15... a6 {[%clk 0:03:27.6]} 16. Bc4 {[%clk 0:03:56.1]} 16...
b5 {[%clk 0:03:19.6]} 17. Bd5 {[%clk 0:03:54.2]} 17... Rb8 {[%clk 0:03:11.7]}
18. Kb2 {[%clk 0:03:52.6]} 18... Bg7 {[%clk 0:03:03.9]} 19. Kxa2 {[%clk
0:03:48.8]} 19... a5 {[%clk 0:02:59.7]} 20. Ng3 {[%clk 0:03:46.1]} 20... a4
{[%clk 0:02:56.3]} 21. Nf5 {[%clk 0:03:44.4]} 21... Bf8 {[%clk 0:02:47.1]} 22.
Bxf7 {[%clk 0:03:39.1]} 22... axb3+ {[%clk 0:02:45.2]} 23. cxb3 {[%clk
0:03:37.4]} 23... Ra8+ {[%clk 0:02:43.8]} 24. Kb2 {[%clk 0:03:36]} 24... b4
{[%clk 0:02:40.4]} 25. Ra1 {[%clk 0:03:32.1]} 25... Rb8 {[%clk 0:02:35.6]} 26.
Rhd1 {[%clk 0:03:27.5]} 26... h5 {[%clk 0:02:29.9]} 27. h4 {[%clk 0:03:23.9]}
27... Rh7 {[%clk 0:02:27.1]} 28. Bg6 {[%clk 0:03:18.3]} 28... Rh8 {[%clk
0:02:23.8]} 29. Ra6 {[%clk 0:03:14.2]} 29... Kd7 {[%clk 0:02:17]} 30. Nxd6
{[%clk 0:03:11.3]} 30... Rg8 {[%clk 0:02:05.5]} 31. Bf5+ {[%clk 0:03:02.4]}
31... Kc7 {[%clk 0:01:45.8]} 32. g3 {[%clk 0:02:54.6]} 32... Bxd6 {[%clk
0:01:37.3]} 33. Rdxd6 {[%clk 0:02:49.4]} 33... Rgd8 {[%clk 0:01:36]} 34. Rxd8
{[%clk 0:02:46.4]} 34... Rxd8 {[%clk 0:01:34.6]} 35. Rxf6 {[%clk 0:02:45.8]}
35... Rd2+ {[%clk 0:01:32.9]} 36. Kb1 {[%clk 0:02:44.1]} 36... Rxf2 {[%clk
0:01:31.6]} 37. e5 {[%clk 0:02:41.5]} 37... Rf3 {[%clk 0:01:28.9]} 38. Bc2
{[%clk 0:02:35.1]} 38... Rxg3 {[%clk 0:01:19.1]} 39. Rf5 {[%clk 0:02:33.8]}
39... Rg4 {[%clk 0:01:16.1]} 40. Rxh5 {[%clk 0:02:32.5]} 40... Kd7 {[%clk
0:01:12.3]} 41. Rh6 {[%clk 0:02:30.5]} 41... Ke7 {[%clk 0:01:10.8]} 42. e6
{[%clk 0:02:28.7]} 42... Rg1+ {[%clk 0:01:06.5]} 43. Kb2 {[%clk 0:02:27.5]}
43... Rg2 {[%clk 0:01:01.9]} 44. h5 {[%clk 0:02:25.1]} 44... Rh2 {[%clk
0:00:57.7]} 45. Kc1 {[%clk 0:02:15.2]} 45... Rh1+ {[%clk 0:00:56.5]} 46. Bd1
{[%clk 0:02:14.2]} 46... Rh2 {[%clk 0:00:51.2]} 47. Bc2 {[%clk 0:02:09.1]} 47...
Rh1+ {[%clk 0:00:49.9]} 48. Kd2 {[%clk 0:02:08.6]} 48... Rh2+ {[%clk 0:00:49]}
49. Kd3 {[%clk 0:02:08.2]} 49... Rh3+ {[%clk 0:00:43.6]} 50. Ke4 {[%clk
0:01:53.8]} 50... Kd6 {[%clk 0:00:35.6]} 51. Bd3 {[%clk 0:01:48.5]} 51... Rh4+
{[%clk 0:00:27.5]} 52. Ke3 {[%clk 0:01:42.9]} 52... Rh3+ {[%clk 0:00:22.3]} 53.
Kd2 {[%clk 0:01:41.6]} 53... Rh2+ {[%clk 0:00:19.5]} 54. Be2 {[%clk 0:01:41.1]}
54... Ke7 {[%clk 0:00:14.5]} 55. Kd3 {[%clk 0:01:33.3]} 55... Rh3+ {[%clk
0:00:13.6]} 56. Kc4 {[%clk 0:01:31.8]} 56... Rc3+ {[%clk 0:00:11.2]} 57. Kd5
{[%clk 0:01:30.7]} 57... Re3 {[%clk 0:00:04.1]} 58. Rh7+ {[%clk 0:01:25]} 58...
Kf6 {[%clk 0:00:00.6]} 59. Bg4 {[%clk 0:01:24.5]} 1-0

[Event "Live Chess"]
[Site "Chess.com"]
[Date "2023.05.21"]
[Round "-"]
[White "GMHarry-youtube"]
[Black "luckywookie"]
[Result "1-0"]
[WhiteElo "2012"]
[BlackElo "753"]
[TimeControl "300"]
[EndTime "16:25:50 PDT"]
[Termination "GMHarry-youtube won on time"]

1. e4 {[%clk 0:04:59.3]} 1... c6 {[%clk 0:04:58.5]} 2. Nf3 {[%clk 0:04:57]} 2...
d5 {[%clk 0:04:57.4]} 3. Nc3 {[%clk 0:04:56.6]} 3... e6 {[%clk 0:04:49.1]} 4. d4
{[%clk 0:04:55]} 4... Nd7 {[%clk 0:04:48]} 5. e5 {[%clk 0:04:54.3]} 5... c5
{[%clk 0:04:44.7]} 6. Ne2 {[%clk 0:04:52.2]} 6... Be7 {[%clk 0:04:21.3]} 7. c3
{[%clk 0:04:48.2]} 7... Nh6 {[%clk 0:04:19.9]} 8. Bxh6 {[%clk 0:04:35.5]} 8...
gxh6 {[%clk 0:04:17.1]} 9. Qd2 {[%clk 0:04:35.4]} 9... Bg5 {[%clk 0:04:06.5]}
10. Qc2 {[%clk 0:04:25.6]} 10... b6 {[%clk 0:03:39.6]} 11. h4 {[%clk 0:04:20.8]}
11... Be7 {[%clk 0:03:25.9]} 12. Nf4 {[%clk 0:03:55.8]} 12... c4 {[%clk
0:03:07.8]} 13. Nh5 {[%clk 0:03:47.4]} 13... Bf8 {[%clk 0:02:55.8]} 14. g4
{[%clk 0:03:43.5]} 14... Bb7 {[%clk 0:02:45.1]} 15. g5 {[%clk 0:03:42]} 15...
Qe7 {[%clk 0:02:28]} 16. Nf6+ {[%clk 0:03:30.1]} 16... Nxf6 {[%clk 0:02:24.5]}
17. gxf6 {[%clk 0:03:30]} 17... Qd7 {[%clk 0:02:17.8]} 18. Be2 {[%clk
0:03:21.9]} 18... O-O-O {[%clk 0:02:15.9]} 19. a4 {[%clk 0:03:20]} 19... a5
{[%clk 0:02:00.5]} 20. b4 {[%clk 0:03:15.1]} 20... Bc6 {[%clk 0:01:51.1]} 21. b5
{[%clk 0:03:12.7]} 21... Bb7 {[%clk 0:01:44.1]} 22. Nd2 {[%clk 0:03:11.3]} 22...
Kc7 {[%clk 0:01:40.9]} 23. O-O-O {[%clk 0:03:10.4]} 23... Ba3+ {[%clk
0:01:02.5]} 24. Kb1 {[%clk 0:03:08.3]} 24... Qe8 {[%clk 0:00:56.4]} 25. Rdg1
{[%clk 0:03:06.4]} 25... Rg8 {[%clk 0:00:42.2]} 26. Qxh7 {[%clk 0:03:03.7]}
26... Rxg1+ {[%clk 0:00:38.7]} 27. Rxg1 {[%clk 0:03:03.6]} 27... Bf8 {[%clk
0:00:28.6]} 28. Rg8 {[%clk 0:02:59]} 28... Qd7 {[%clk 0:00:24.8]} 29. Bh5 {[%clk
0:02:54.2]} 29... Kb8 {[%clk 0:00:18.5]} 30. Qxf7 {[%clk 0:02:52.3]} 30... Qxf7
{[%clk 0:00:15.5]} 31. Bxf7 {[%clk 0:02:51.4]} 31... Ka7 {[%clk 0:00:12]} 32.
Bxe6 {[%clk 0:02:50.5]} 32... Re8 {[%clk 0:00:10.2]} 33. Bf7 {[%clk 0:02:49.5]}
33... Re7 {[%clk 0:00:08.9]} 34. fxe7 {[%clk 0:02:48.1]} 34... Bxe7 {[%clk
0:00:08.2]} 35. Rg7 {[%clk 0:02:47.5]} 35... Ba3 {[%clk 0:00:05.9]} 36. e6
{[%clk 0:02:46.5]} 36... Bc8 {[%clk 0:00:03.8]} 37. Be8+ {[%clk 0:02:46]} 1-0

[Event "Live Chess"]
[Site "Chess.com"]
[Date "2023.05.21"]
[Round "-"]
[White "1600x"]
[Black "JoshMcK"]
[Result "1-0"]
[WhiteElo "1821"]
[BlackElo "1517"]
[TimeControl "300"]
[EndTime "16:25:52 PDT"]
[Termination "1600x won by resignation"]

1. e4 {[%clk 0:04:53.6]} 1... c6 {[%clk 0:04:55.6]} 2. Nc3 {[%clk 0:04:52.2]}
2... d5 {[%clk 0:04:55.5]} 3. d4 {[%clk 0:04:50.7]} 3... dxe4 {[%clk 0:04:51.4]}
4. Nxe4 {[%clk 0:04:47.7]} 4... Nf6 {[%clk 0:04:51.3]} 5. Nxf6+ {[%clk
0:04:46.1]} 5... exf6 {[%clk 0:04:51.2]} 6. c3 {[%clk 0:04:43.1]} 6... Bd6
{[%clk 0:04:50.5]} 7. Bd3 {[%clk 0:04:41.4]} 7... O-O {[%clk 0:04:49.9]} 8. Qh5
{[%clk 0:04:39.3]} 8... Re8+ {[%clk 0:04:41.6]} 9. Ne2 {[%clk 0:04:33.5]} 9...
g6 {[%clk 0:04:39.3]} 10. Qh4 {[%clk 0:04:31.8]} 10... Nd7 {[%clk 0:04:31.9]}
11. O-O {[%clk 0:04:28.5]} 11... c5 {[%clk 0:04:29.6]} 12. Rd1 {[%clk
0:04:22.7]} 12... cxd4 {[%clk 0:04:28.4]} 13. Nxd4 {[%clk 0:04:19.5]} 13... Be5
{[%clk 0:04:21.9]} 14. Nf5 {[%clk 0:04:16.1]} 14... Qb6 {[%clk 0:04:08.6]} 15.
Nh6+ {[%clk 0:04:13.4]} 15... Kg7 {[%clk 0:04:05.8]} 16. Nxf7 {[%clk 0:04:08.8]}
16... h5 {[%clk 0:03:53.3]} 17. Be3 {[%clk 0:04:06.5]} 17... Kxf7 {[%clk
0:03:50.9]} 18. Bxb6 {[%clk 0:04:04.1]} 1-0

[Event "Live Chess"]
[Site "Chess.com"]
[Date "2023.05.21"]
[Round "-"]
[White "stevochess11"]
[Black "SupremeTactician"]
[Result "1-0"]
[WhiteElo "1756"]
[BlackElo "2320"]
[TimeControl "300"]
[EndTime "16:26:03 PDT"]
[Termination "stevochess11 won by checkmate"]

1. d4 {[%clk 0:04:55.8]} 1... Nf6 {[%clk 0:04:58.8]} 2. Nf3 {[%clk 0:04:54.8]}
2... e6 {[%clk 0:04:58.1]} 3. e3 {[%clk 0:04:53.8]} 3... b6 {[%clk 0:04:57.5]}
4. Bd3 {[%clk 0:04:52.8]} 4... Bb7 {[%clk 0:04:55.7]} 5. O-O {[%clk 0:04:51.8]}
5... Be7 {[%clk 0:04:54.6]} 6. c4 {[%clk 0:04:50.8]} 6... O-O {[%clk 0:04:54.1]}
7. Nc3 {[%clk 0:04:49.7]} 7... d6 {[%clk 0:04:53.5]} 8. d5 {[%clk 0:04:44]} 8...
e5 {[%clk 0:04:50.8]} 9. e4 {[%clk 0:04:41.3]} 9... Nbd7 {[%clk 0:04:49.7]} 10.
h3 {[%clk 0:04:33]} 10... Re8 {[%clk 0:04:48.8]} 11. Be3 {[%clk 0:04:31.9]}
11... Nf8 {[%clk 0:04:46.7]} 12. Ne2 {[%clk 0:04:18.4]} 12... Ng6 {[%clk
0:04:30.6]} 13. Rc1 {[%clk 0:04:11]} 13... Bc8 {[%clk 0:04:28.8]} 14. b3 {[%clk
0:04:06.1]} 14... Bd7 {[%clk 0:04:24.9]} 15. b4 {[%clk 0:04:01.6]} 15... Qc8
{[%clk 0:04:23.9]} 16. Kh2 {[%clk 0:03:49.2]} 16... h6 {[%clk 0:04:16.1]} 17. c5
{[%clk 0:03:45]} 17... bxc5 {[%clk 0:04:15.5]} 18. bxc5 {[%clk 0:03:43.3]} 18...
dxc5 {[%clk 0:04:15.4]} 19. Bxc5 {[%clk 0:03:37.8]} 19... Bxc5 {[%clk 0:04:06]}
20. Rxc5 {[%clk 0:03:35.2]} 20... Nh5 {[%clk 0:04:05.6]} 21. Qc1 {[%clk
0:03:24.9]} 21... Ngf4 {[%clk 0:03:57.1]} 22. Rxc7 {[%clk 0:03:17.9]} 22... Qd8
{[%clk 0:03:55.6]} 23. Nxf4 {[%clk 0:02:54.8]} 23... Nxf4 {[%clk 0:03:54.1]} 24.
Qc3 {[%clk 0:02:53.3]} 24... Nxd3 {[%clk 0:03:51.6]} 25. d6 {[%clk 0:02:44.4]}
25... Nf4 {[%clk 0:03:44.8]} 26. Nxe5 {[%clk 0:02:41.9]} 26... Be6 {[%clk
0:03:11.7]} 27. Rb1 {[%clk 0:02:24.5]} 27... Qxd6 {[%clk 0:03:05.1]} 28. Rbb7
{[%clk 0:02:19.6]} 28... Rac8 {[%clk 0:03:01.8]} 29. Nxf7 {[%clk 0:01:57.5]}
29... Bxf7 {[%clk 0:02:36]} 30. Rxf7 {[%clk 0:01:44.5]} 30... Nh5+ {[%clk
0:02:10.3]} 31. Qg3 {[%clk 0:01:29.1]} 31... Qxg3+ {[%clk 0:01:54.9]} 32. fxg3
{[%clk 0:01:27.2]} 32... Rf8 {[%clk 0:01:54.5]} 33. Rfd7 {[%clk 0:01:15.7]}
33... Rcd8 {[%clk 0:01:49.8]} 34. Rdc7 {[%clk 0:01:10.8]} 34... Rfe8 {[%clk
0:01:46.4]} 35. g4 {[%clk 0:01:08.6]} 35... Nf6 {[%clk 0:01:45.2]} 36. Rxg7+
{[%clk 0:01:07]} 36... Kh8 {[%clk 0:01:44.4]} 37. Rg6 {[%clk 0:01:00.9]} 37...
Nxe4 {[%clk 0:01:39.7]} 38. Rxh6+ {[%clk 0:00:59.6]} 38... Kg8 {[%clk
0:01:39.1]} 39. Rg6+ {[%clk 0:00:55.2]} 39... Kf8 {[%clk 0:01:38.6]} 40. Rgg7
{[%clk 0:00:51.5]} 40... Nd6 {[%clk 0:01:37.6]} 41. Rxa7 {[%clk 0:00:46.2]}
41... Re6 {[%clk 0:01:34.4]} 42. Rh7 {[%clk 0:00:42.5]} 42... Rg6 {[%clk
0:01:33.7]} 43. Rh8+ {[%clk 0:00:37.6]} 43... Rg8 {[%clk 0:01:32.8]} 44. Rhh7
{[%clk 0:00:34.3]} 44... Nc8 {[%clk 0:01:04.2]} 45. Raf7+ {[%clk 0:00:32.4]}
45... Ke8 {[%clk 0:01:03.6]} 46. Rb7 {[%clk 0:00:30.4]} 46... Rd6 {[%clk
0:00:59]} 47. a4 {[%clk 0:00:28.5]} 47... Ra6 {[%clk 0:00:52.5]} 48. Rb8 {[%clk
0:00:26.7]} 48... Rc6 {[%clk 0:00:51.3]} 49. a5 {[%clk 0:00:24.8]} 49... Rg5
{[%clk 0:00:48.8]} 50. a6 {[%clk 0:00:23.1]} 50... Ra5 {[%clk 0:00:46.3]} 51. a7
{[%clk 0:00:21]} 51... Kd8 {[%clk 0:00:31.1]} 52. a8=Q {[%clk 0:00:19.2]} 52...
Rxa8 {[%clk 0:00:30.8]} 53. Rxa8 {[%clk 0:00:18.2]} 53... Rc5 {[%clk 0:00:29.8]}
54. Rh8+ {[%clk 0:00:17.4]} 54... Kd7 {[%clk 0:00:29]} 55. Raxc8 {[%clk
0:00:16.2]} 55... Rb5 {[%clk 0:00:28.5]} 56. Rhd8+ {[%clk 0:00:14.7]} 56... Ke7
{[%clk 0:00:28.2]} 57. Rb8 {[%clk 0:00:13.7]} 57... Rc5 {[%clk 0:00:26.9]} 58.
Re8+ {[%clk 0:00:13]} 58... Kd6 {[%clk 0:00:25.9]} 59. h4 {[%clk 0:00:12.9]}
59... Ra5 {[%clk 0:00:24.8]} 60. h5 {[%clk 0:00:12.4]} 60... Ra4 {[%clk
0:00:24.4]} 61. h6 {[%clk 0:00:12.3]} 61... Rxg4 {[%clk 0:00:24]} 62. h7 {[%clk
0:00:11.8]} 62... Rh4+ {[%clk 0:00:23.5]} 63. Kg3 {[%clk 0:00:11.1]} 63... Rxh7
{[%clk 0:00:23.4]} 64. Rh8 {[%clk 0:00:10.1]} 64... Rg7+ {[%clk 0:00:22.4]} 65.
Kf3 {[%clk 0:00:09.4]} 65... Rf7+ {[%clk 0:00:21.8]} 66. Kg3 {[%clk 0:00:08.9]}
66... Ra7 {[%clk 0:00:21.7]} 67. Kh3 {[%clk 0:00:08.4]} 67... Ra3+ {[%clk
0:00:20.5]} 68. g3 {[%clk 0:00:08.3]} 68... Ra2 {[%clk 0:00:20]} 69. Rh6+ {[%clk
0:00:07.9]} 69... Ke7 {[%clk 0:00:19.2]} 70. Rb7+ {[%clk 0:00:07.2]} 70... Kf8
{[%clk 0:00:16.4]} 71. Rh8# {[%clk 0:00:07.1]} 1-0

[Event "Live Chess"]
[Site "Chess.com"]
[Date "2023.05.21"]
[Round "-"]
[White "Shepherds_Pie"]
[Black "LodeshChess"]
[Result "1-0"]
[WhiteElo "1925"]
[BlackElo "1143"]
[TimeControl "300"]
[EndTime "16:26:25 PDT"]
[Termination "Shepherds_Pie won by checkmate"]

1. c4 {[%clk 0:04:57.9]} 1... e5 {[%clk 0:04:54.3]} 2. Nc3 {[%clk 0:04:56.6]}
2... c6 {[%clk 0:04:53.5]} 3. Nf3 {[%clk 0:04:55.2]} 3... d5 {[%clk 0:04:52.9]}
4. cxd5 {[%clk 0:04:53]} 4... cxd5 {[%clk 0:04:51.7]} 5. Nxe5 {[%clk 0:04:51.8]}
5... d4 {[%clk 0:04:50.8]} 6. Qa4+ {[%clk 0:04:45.8]} 6... Bd7 {[%clk
0:04:45.7]} 7. Qxd4 {[%clk 0:04:42]} 7... Nc6 {[%clk 0:04:38.4]} 8. Nxc6 {[%clk
0:04:40.5]} 8... Bxc6 {[%clk 0:04:37.9]} 9. Qxd8+ {[%clk 0:04:38.7]} 9... Rxd8
{[%clk 0:04:37.4]} 10. e3 {[%clk 0:04:36.1]} 10... Nf6 {[%clk 0:04:30.9]} 11. d4
{[%clk 0:04:34.7]} 11... Bb4 {[%clk 0:04:29.7]} 12. Bd2 {[%clk 0:04:33.4]} 12...
O-O {[%clk 0:04:27.2]} 13. Be2 {[%clk 0:04:31.3]} 13... Bxg2 {[%clk 0:04:21]}
14. Rg1 {[%clk 0:04:30.3]} 14... Bc6 {[%clk 0:04:12.4]} 15. O-O-O {[%clk
0:04:28]} 15... Bxc3 {[%clk 0:04:05.1]} 16. Bxc3 {[%clk 0:04:22.8]} 16... Ne4
{[%clk 0:04:04.3]} 17. Be1 {[%clk 0:04:18.2]} 17... a6 {[%clk 0:03:58.7]} 18.
Bd3 {[%clk 0:04:14.8]} 18... b5 {[%clk 0:03:51]} 19. f3 {[%clk 0:04:12.6]} 19...
Nf6 {[%clk 0:03:40]} 20. e4 {[%clk 0:04:09.7]} 20... Rxd4 {[%clk 0:03:38.6]} 21.
Bc3 {[%clk 0:04:08.6]} 21... Rdd8 {[%clk 0:03:27.6]} 22. Bxf6 {[%clk 0:04:06.6]}
22... Rxd3 {[%clk 0:03:04.5]} 23. Rxg7+ {[%clk 0:04:02.1]} 23... Kh8 {[%clk
0:03:03.6]} 24. Rxd3 {[%clk 0:03:58.8]} 24... Rc8 {[%clk 0:02:58.3]} 25. Rg5#
{[%clk 0:03:52.2]} 1-0

[Event "Live Chess"]
[Site "Chess.com"]
[Date "2023.05.21"]
[Round "-"]
[White "Tushinskiy"]
[Black "alanmike75"]
[Result "1-0"]
[WhiteElo "2171"]
[BlackElo "1535"]
[TimeControl "300"]
[EndTime "16:26:30 PDT"]
[Termination "Tushinskiy won by resignation"]

1. d4 {[%clk 0:04:58.2]} 1... d5 {[%clk 0:04:58.4]} 2. c3 {[%clk 0:04:58.1]}
2... Nf6 {[%clk 0:04:55.6]} 3. Nf3 {[%clk 0:04:58]} 3... Nc6 {[%clk 0:04:53.5]}
4. Bf4 {[%clk 0:04:57.4]} 4... Bd7 {[%clk 0:04:52.2]} 5. Bg3 {[%clk 0:04:56.6]}
5... Qb8 {[%clk 0:04:50.7]} 6. Nbd2 {[%clk 0:04:56.1]} 6... e6 {[%clk
0:04:47.3]} 7. e3 {[%clk 0:04:55.3]} 7... Bd6 {[%clk 0:04:44.3]} 8. Bd3 {[%clk
0:04:54.7]} 8... O-O {[%clk 0:04:42.2]} 9. Qe2 {[%clk 0:04:52.9]} 9... Ne7
{[%clk 0:04:38.8]} 10. e4 {[%clk 0:04:51.4]} 10... dxe4 {[%clk 0:04:37.1]} 11.
Nxe4 {[%clk 0:04:51.3]} 11... Nxe4 {[%clk 0:04:33.7]} 12. Qxe4 {[%clk
0:04:51.2]} 12... Nf5 {[%clk 0:04:29.4]} 13. O-O-O {[%clk 0:04:48.1]} 13... Bc6
{[%clk 0:04:27.9]} 14. Qe2 {[%clk 0:04:46.8]} 14... Bxg3 {[%clk 0:04:16.1]} 15.
hxg3 {[%clk 0:04:45.2]} 15... Bxf3 {[%clk 0:04:13.4]} 16. gxf3 {[%clk
0:04:43.7]} 16... g6 {[%clk 0:04:05.5]} 17. g4 {[%clk 0:04:41.5]} 17... Ng7
{[%clk 0:04:04.1]} 18. Rh6 {[%clk 0:04:40.4]} 18... f5 {[%clk 0:03:58.5]} 19.
Rdh1 {[%clk 0:04:37.8]} 1-0

[Event "Live Chess"]
[Site "Chess.com"]
[Date "2023.05.21"]
[Round "-"]
[White "JoeyCage"]
[Black "karimghalambaz"]
[Result "1-0"]
[WhiteElo "2296"]
[BlackElo "1273"]
[TimeControl "300"]
[EndTime "16:26:40 PDT"]
[Termination "JoeyCage won by resignation"]

1. e4 {[%clk 0:04:56.1]} 1... c5 {[%clk 0:04:50.2]} 2. Nf3 {[%clk 0:04:54.6]}
2... d6 {[%clk 0:04:46.9]} 3. d4 {[%clk 0:04:53.3]} 3... cxd4 {[%clk 0:04:45.2]}
4. Nxd4 {[%clk 0:04:52.5]} 4... Nc6 {[%clk 0:04:43.8]} 5. Nc3 {[%clk 0:04:51.1]}
5... Nf6 {[%clk 0:04:40.9]} 6. Bg5 {[%clk 0:04:43.7]} 6... g6 {[%clk 0:04:38.7]}
7. Bxf6 {[%clk 0:04:41.1]} 7... exf6 {[%clk 0:04:37.1]} 8. Qd2 {[%clk
0:04:40.6]} 8... Bg7 {[%clk 0:04:34.5]} 9. O-O-O {[%clk 0:04:39.2]} 9... O-O
{[%clk 0:04:30.6]} 10. Nxc6 {[%clk 0:04:37.7]} 10... bxc6 {[%clk 0:04:28.8]} 11.
Qxd6 {[%clk 0:04:36.4]} 11... Be6 {[%clk 0:04:24.5]} 12. Qxd8 {[%clk 0:04:34]}
12... Rfxd8 {[%clk 0:04:21.1]} 13. Rxd8+ {[%clk 0:04:32.8]} 13... Rxd8 {[%clk
0:04:19.2]} 14. Bd3 {[%clk 0:04:32.3]} 14... c5 {[%clk 0:04:13.6]} 15. Rd1
{[%clk 0:04:18.4]} 15... c4 {[%clk 0:04:10.9]} 16. Be2 {[%clk 0:04:17]} 16...
Rc8 {[%clk 0:03:56]} 17. Nd5 {[%clk 0:04:15.4]} 17... f5 {[%clk 0:03:42.4]} 18.
Ne7+ {[%clk 0:04:11.8]} 18... Kh8 {[%clk 0:03:28.4]} 19. Nxc8 {[%clk 0:04:10]}
19... Bxc8 {[%clk 0:03:25.1]} 20. Rd8+ {[%clk 0:04:08.2]} 20... Bf8 {[%clk
0:03:20.8]} 21. Rxf8+ {[%clk 0:04:07.5]} 1-0